[Event "FIDE WYCC Girls U14 2023"]
[Site "Montesilvano"]
[Date "2023.11.23"]
[Round "10.13"]
[White "Mueller, Riyanna"]
[Black "Suyamin, Bonjoure Fille"]
[Result "1/2-1/2"]
[ECO "B13"]
[WhiteElo "1754"]
[BlackElo "1570"]
[Annotator "NA RC"]
[PlyCount "114"]
[EventDate "2023.11.13"]
[EventType "swiss"]
[EventCountry "ITA"]
[SourceTitle "playchess.com"]
[Source "ChessBase"]
[SourceQuality "1"]
[TimeControl "40/5400+30:1800+30"]

1. e4 {[%emt 0:00:03]} c6 {[%emt 0:00:09]} 2. d4 {[%emt 0:00:09]} d5 {[%emt 0:00:09]} 3. exd5 {[%emt 0:00:09]} Qxd5 {[%emt 0:00:27]} 4. Nc3 {[%emt 0:00:58]} Qa5 {[%emt 0:00:18]} 5. Nf3 {[%emt 0:00:21]} Nf6 {[%emt 0:00:15]} 6. Bc4 {[%emt 0:01:14]} Bf5 {[%emt 0:00:12]} 7. O-O {[%emt 0:00:38]} e6 {[%emt 0:00:12]} 8. Re1 {[%emt 0:01:32]} Be7 {[%emt 0:00:21]} 9. Qe2 {[%emt 0:03:34]} O-O {[%emt 0:01:42]} 10. Bb3 {[%emt 0:09:47]} Bd6 {[%emt 0:02:24]} 11. Bg5 {[%emt 0:01:27]} Nbd7 {[%emt 0:00:12]} 12. Rad1 {[%emt 0:00:36]} Bg4 {[%emt 0:02:34]} 13. Bxf6 {[%emt 0:07:21]} Nxf6 {[%emt 0:00:11]} 14. h3 {[%emt 0:03:14]} Bh5 {[%emt 0:03:31]} 15. g4 {[%emt 0:04:34]} Bg6 {[%emt 0:04:14]} 16. Ne5 {[%emt 0:01:16]} Nd5 {[%emt 0:15:05]} 17. Nxd5 {[%emt 0:06:30]} cxd5 {[%emt 0:04:21]} 18. h4 {[%emt 0:11:08]} Bxe5 {[%emt 0:06:57]} 19. dxe5 {[%emt 0:03:17]} h6 {[%emt 0:02:57]} 20. Rd4 {[%emt 0:05:37]} Rac8 {[%emt 0:02:14]} 21. c3 {[%emt 0:01:25]} Qd8 {[%emt 0:04:24]} 22. h5 {[%emt 0:01:00]} Be4 {[%emt 0:00:50]} 23. f3 {[%emt 0:02:29]} Bh7 {[%emt 0:00:29]} 24. c4 {[%emt 0:01:09]} Qb6 {[%emt 0:01:03]} 25. Qf2 {[%emt 0:00:22]} dxc4 {[%emt 0:00:21]} 26. Rxc4 {[%emt 0:01:41]} Rxc4 {[%emt 0:04:54]} 27. Bxc4 {[%emt 0:00:26]} Qb4 {[%emt 0:00:38]} 28. Bb3 {[%emt 0:02:21]} Rd8 {[%emt 0:05:20]} 29. Re2 {[%emt 0:09:07]} a5 {[%emt 0:02:33]} 30. Bc2 {[%emt 0:04:33]} Qf4 {[%emt 0:07:54]} 31. Bxh7+ {[%emt 0:08:11]} Kxh7 {[%emt 0:00:06]} 32. Kg2 {[%emt 0:00:10]} Rd5 {[%emt 0:11:19]} 33. Qe1 {[%emt 0:04:03]} g6 {[%emt 0:10:06]} 34. hxg6+ {[%emt 0:00:46]} Kxg6 {[%emt 0:00:10]} 35. Qc3 {[%emt 0:01:13]} Qg5 {[%emt 0:06:29]} 36. Qc2+ {[%emt 0:03:50]} Kg7 {[%emt 0:00:24]} 37. Qe4 {[%emt 0:00:07]} h5 {[%emt 0:02:19]} 38. b3 {[%emt 0:00:46]} b5 {[%emt 0:00:50]} 39. Kg3 {[%emt 0:01:42]} Rd1 {[%emt 0:00:34]} 40. Re1 {[%emt 0:00:00]} Rd2 {[%emt 0:00:00]} 41. Re2 {[%emt 0:02:13]} Rd1 {[%emt 0:16:58]} 42. Re1 {[%emt 0:01:48]} Rxe1 {[%emt 0:01:11]} 43. Qxe1 {[%emt 0:00:08]} a4 {[%emt 0:00:58]} 44. bxa4 {[%emt 0:01:20]} bxa4 {[%emt 0:00:09]} 45. a3 {[%emt 0:05:41]} h4+ {[%emt 0:07:40]} 46. Kg2 {[%emt 0:02:15]} Qf4 {[%emt 0:01:50]} 47. Qxh4 {[%emt 0:00:46]} Qxe5 {[%emt 0:00:07]} 48. Qe7 {[%emt 0:02:06]} Qf4 {[%emt 0:01:26]} 49. Qc5 {[%emt 0:01:09]} e5 {[%emt 0:00:34]} 50. Qe7 {[%emt 0:01:33]} Kg6 {[%emt 0:00:52]} 51. Qf8 {[%emt 0:00:59]} Qd2+ {[%emt 0:01:41]} 52. Kg3 {[%emt 0:00:50]} Qe3 {[%emt 0:00:50]} 53. Qe7 {[%emt 0:01:23]} Qg1+ {[%emt 0:00:30]} 54. Kh3 {[%emt 0:00:33]} Qh1+ {[%emt 0:02:18]} 55. Kg3 {[%emt 0:00:14]} Qg1+ {[%emt 0:00:48]} 56. Kh3 {[%emt 0:00:10]} Qh1+ {[%emt 0:00:15]} 57. Kg3 {[%emt 0:00:31]} Qg1+ {[%emt 0:00:07]} 1/2-1/2

[Event "FIDE WYCC Girls U14 2023"]
[Site "Montesilvano"]
[Date "2023.11.23"]
[Round "10.14"]
[White "Aswinika Mani R"]
[Black "Trunz, Tamila"]
[Result "0-1"]
[ECO "B40"]
[WhiteElo "1472"]
[BlackElo "1732"]
[Annotator "NA RC"]
[PlyCount "84"]
[EventDate "2023.11.13"]
[EventType "swiss"]
[EventCountry "ITA"]
[SourceTitle "playchess.com"]
[Source "ChessBase"]
[SourceQuality "1"]
[TimeControl "40/5400+30:1800+30"]

1. e4 {[%emt 0:00:08]} c5 {[%emt 0:00:07]} 2. Nf3 {[%emt 0:00:05]} e6 {[%emt 0:00:06]} 3. d4 {[%emt 0:00:03]} cxd4 {[%emt 0:00:06]} 4. Nxd4 {[%emt 0:00:04]} Qb6 {[%emt 0:00:05]} 5. c3 {[%emt 0:05:14]} a6 {[%emt 0:03:30]} 6. Nd2 {[%emt 0:03:07]} Nf6 {[%emt 0:07:19]} 7. Bd3 {[%emt 0:03:56]} Qc7 {[%emt 0:04:53]} 8. O-O {[%emt 0:02:30]} Be7 {[%emt 0:03:29]} 9. f4 {[%emt 0:05:55]} d6 {[%emt 0:02:00]} 10. N2f3 {[%emt 0:05:21]} Nbd7 {[%emt 0:06:02]} 11. Qe2 {[%emt 0:10:45]} Nc5 {[%emt 0:13:16]} 12. Bb1 {[%emt 0:08:27]} e5 {[%emt 0:05:18]} 13. fxe5 {[%emt 0:07:06]} dxe5 {[%emt 0:01:16]} 14. Nf5 {[%emt 0:00:38]} Bxf5 {[%emt 0:05:34]} 15. exf5 {[%emt 0:00:03]} Nfd7 {[%emt 0:07:59]} 16. Bc2 {[%emt 0:03:17]} b6 {[%emt 0:04:07]} 17. b4 {[%emt 0:03:32]} Nb7 {[%emt 0:00:06]} 18. Bb2 {[%emt 0:00:32]} O-O {[%emt 0:01:16]} 19. Rad1 {[%emt 0:01:56]} Rfe8 {[%emt 0:00:56]} 20. Rd5 {[%emt 0:04:35]} Bd6 {[%emt 0:01:07]} 21. Be4 {[%emt 0:03:09]} b5 {[%emt 0:00:57]} 22. Rd2 {[%emt 0:04:31]} Be7 {[%emt 0:04:25]} 23. Rfd1 {[%emt 0:12:38]} Rad8 {[%emt 0:00:42]} 24. h4 {[%emt 0:02:20]} Nd6 {[%emt 0:00:30]} 25. Bd5 {[%emt 0:04:34]} Nxf5 {[%emt 0:02:11]} 26. Bxf7+ {[%emt 0:01:30]} Kxf7 {[%emt 0:00:31]} 27. Rxd7 {[%emt 0:00:11]} Rxd7 {[%emt 0:03:40]} 28. Rxd7 {[%emt 0:00:02]} Qb6+ {[%emt 0:00:25]} 29. Qf2 {[%emt 0:02:11]} Qxf2+ {[%emt 0:04:19]} 30. Kxf2 {[%emt 0:00:02]} e4 {[%emt 0:03:15]} 31. Ng5+ {[%emt 0:01:20]} Kg6 {[%emt 0:00:56]} 32. Ra7 {[%emt 0:02:46]} Bxg5 {[%emt 0:00:20]} 33. hxg5 {[%emt 0:00:08]} e3+ {[%emt 0:04:08]} 34. Ke1 {[%emt 0:00:18]} Nh4 {[%emt 0:02:50]} 35. Rxa6+ {[%emt 0:01:19]} Kxg5 {[%emt 0:00:35]} 36. Bc1 {[%emt 0:01:18]} Kg4 {[%emt 0:02:18]} 37. Rd6 {[%emt 0:00:55]} Nxg2+ {[%emt 0:00:21]} 38. Ke2 {[%emt 0:00:24]} Nf4+ {[%emt 0:01:40]} 39. Ke1 {[%emt 0:00:05]} Kf3 {[%emt 0:00:40]} 40. Bxe3 {[%emt 0:00:00]} Rxe3+ {[%emt 0:00:00]} 41. Kf1 {[%emt 0:00:23]} Rd3 {[%emt 0:02:33]} 42. Rxd3+ {[%emt 0:00:08]} Nxd3 {[%emt 0:00:06]} 0-1

[Event "FIDE WYCC Girls U14 2023"]
[Site "Montesilvano"]
[Date "2023.11.23"]
[Round "10.15"]
[White "Dicen, Elis Denele"]
[Black "Mohd Afif, Ainul Mardhiah"]
[Result "1/2-1/2"]
[ECO "E51"]
[WhiteElo "1976"]
[BlackElo "1478"]
[Annotator "NA RC"]
[PlyCount "181"]
[EventDate "2023.11.13"]
[EventType "swiss"]
[EventCountry "ITA"]
[SourceTitle "playchess.com"]
[Source "ChessBase"]
[SourceQuality "1"]
[TimeControl "40/5400+30:1800+30"]

1. d4 {[%emt 0:00:03]} Nf6 {[%emt 0:00:33]} 2. c4 {[%emt 0:00:09]} e6 {[%emt 0:00:07]} 3. Nc3 {[%emt 0:00:07]} Bb4 {[%emt 0:00:07]} 4. e3 {[%emt 0:00:11]} O-O {[%emt 0:00:23]} 5. Nf3 {[%emt 0:00:22]} d5 {[%emt 0:00:31]} 6. Bd2 {[%emt 0:00:24]} b6 {[%emt 0:00:13]} 7. cxd5 {[%emt 0:00:53]} exd5 {[%emt 0:00:30]} 8. Bd3 {[%emt 0:00:42]} Bb7 {[%emt 0:00:27]} 9. O-O {[%emt 0:00:34]} Nbd7 {[%emt 0:01:20]} 10. Rc1 {[%emt 0:00:59]} c5 {[%emt 0:03:00]} 11. b3 {[%emt 0:04:21]} a6 {[%emt 0:06:45]} 12. Ne2 {[%emt 0:06:18]} Bxd2 {[%emt 0:02:15]} 13. Qxd2 {[%emt 0:00:22]} Qe7 {[%emt 0:01:02]} 14. Qb2 {[%emt 0:02:38]} Rfe8 {[%emt 0:03:31]} 15. Ng3 {[%emt 0:04:58]} Ne4 {[%emt 0:06:22]} 16. dxc5 {[%emt 0:04:58]} Nxg3 {[%emt 0:13:44]} 17. hxg3 {[%emt 0:00:26]} bxc5 {[%emt 0:01:46]} 18. Qc2 {[%emt 0:04:40]} g6 {[%emt 0:03:10]} 19. Rfe1 {[%emt 0:03:15]} Rac8 {[%emt 0:02:28]} 20. Qe2 {[%emt 0:07:15]} Qf6 {[%emt 0:06:43]} 21. Qd2 {[%emt 0:07:22]} Ne5 {[%emt 0:13:32]} 22. Nxe5 {[%emt 0:07:05]} Rxe5 {[%emt 0:00:42]} 23. Rc2 {[%emt 0:04:43]} Qc6 {[%emt 0:05:06]} 24. Bf1 {[%emt 0:02:58]} Qd6 {[%emt 0:02:43]} 25. Rec1 {[%emt 0:02:11]} Re7 {[%emt 0:03:01]} 26. b4 {[%emt 0:04:04]} Rec7 {[%emt 0:05:10]} 27. bxc5 {[%emt 0:03:44]} Rxc5 {[%emt 0:03:08]} 28. Rxc5 {[%emt 0:02:30]} Rxc5 {[%emt 0:00:05]} 29. Rb1 {[%emt 0:00:51]} Rc7 {[%emt 0:01:14]} 30. Qd4 {[%emt 0:00:53]} Bc8 {[%emt 0:08:29]} 31. Rd1 {[%emt 0:05:49]} Be6 {[%emt 0:02:18]} 32. a4 {[%emt 0:02:35]} Qc6 {[%emt 0:00:50]} 33. Be2 {[%emt 0:07:03]} a5 {[%emt 0:02:52]} 34. Rb1 {[%emt 0:03:25]} Rc8 {[%emt 0:02:06]} 35. Bb5 {[%emt 0:03:05]} Qc2 {[%emt 0:01:03]} 36. Rd1 {[%emt 0:01:22]} Qc3 {[%emt 0:00:21]} 37. Qxc3 {[%emt 0:01:52]} Rxc3 {[%emt 0:00:02]} 38. Rd2 {[%emt 0:00:29]} Kg7 {[%emt 0:01:05]} 39. Kh2 {[%emt 0:01:05]} h6 {[%emt 0:00:23]} 40. Rb2 {[%emt 0:00:00]} Kf6 {[%emt 0:00:00]} 41. Rb1 {[%emt 0:02:54]} Bf5 {[%emt 0:03:06]} 42. Rd1 {[%emt 0:02:06]} Ke5 {[%emt 0:01:20]} 43. Kg1 {[%emt 0:01:28]} g5 {[%emt 0:07:41]} 44. Kf1 {[%emt 0:05:58]} f6 {[%emt 0:01:16]} 45. Rd2 {[%emt 0:06:03]} Rc2 {[%emt 0:11:25]} 46. Rd1 {[%emt 0:01:28]} Kd6 {[%emt 0:02:31]} 47. f3 {[%emt 0:02:59]} Kc5 {[%emt 0:00:59]} 48. Rd4 {[%emt 0:02:01]} Rb2 {[%emt 0:00:47]} 49. Rd1 {[%emt 0:04:33]} g4 {[%emt 0:05:07]} 50. Rd4 {[%emt 0:02:22]} Rb4 {[%emt 0:00:37]} 51. Rd2 {[%emt 0:00:32]} d4 {[%emt 0:01:08]} 52. Kf2 {[%emt 0:00:55]} dxe3+ {[%emt 0:00:32]} 53. Kxe3 {[%emt 0:00:14]} Be6 {[%emt 0:00:11]} 54. Rd8 {[%emt 0:02:23]} Bd5 {[%emt 0:00:43]} 55. Rc8+ {[%emt 0:00:41]} Kd6 {[%emt 0:00:37]} 56. fxg4 {[%emt 0:01:27]} Bxg2 {[%emt 0:00:20]} 57. Rf8 {[%emt 0:00:56]} Ke7 {[%emt 0:00:24]} 58. Rh8 {[%emt 0:00:42]} Rxg4 {[%emt 0:00:29]} 59. Rxh6 {[%emt 0:00:27]} Rxg3+ {[%emt 0:00:20]} 60. Kf2 {[%emt 0:00:12]} Rg7 {[%emt 0:00:17]} 61. Rh4 {[%emt 0:00:43]} Kd6 {[%emt 0:00:33]} 62. Rc4 {[%emt 0:00:45]} f5 {[%emt 0:00:23]} 63. Rc8 {[%emt 0:00:43]} Be4 {[%emt 0:00:17]} 64. Re8 {[%emt 0:00:34]} Rc7 {[%emt 0:00:48]} 65. Rf8 {[%emt 0:00:51]} Kc5 {[%emt 0:00:22]} 66. Ke3 {[%emt 0:00:19]} Kb4 {[%emt 0:00:32]} 67. Kd4 {[%emt 0:00:47]} Bc2 {[%emt 0:00:32]} 68. Ke3 {[%emt 0:00:49]} Re7+ {[%emt 0:00:28]} 69. Kd2 {[%emt 0:00:24]} Be4 {[%emt 0:00:23]} 70. Rf6 {[%emt 0:00:15]} Rc7 {[%emt 0:01:11]} 71. Rf8 {[%emt 0:00:27]} Rc5 {[%emt 0:00:35]} 72. Rb8 {[%emt 0:00:35]} Ka3 {[%emt 0:00:37]} 73. Ke3 {[%emt 0:00:40]} Bc2 {[%emt 0:00:34]} 74. Kd4 {[%emt 0:00:20]} Rc7 {[%emt 0:00:08]} 75. Bc4 {[%emt 0:00:32]} Kxa4 {[%emt 0:00:47]} 76. Rb2 {[%emt 0:00:45]} Be4 {[%emt 0:00:45]} 77. Kc3 {[%emt 0:00:33]} Rxc4+ {[%emt 0:00:09]} 78. Kxc4 {[%emt 0:00:07]} Ka3 {[%emt 0:00:06]} 79. Kc3 {[%emt 0:00:30]} Ka4 {[%emt 0:00:55]} 80. Kc4 {[%emt 0:00:56]} Ka3 {[%emt 0:00:09]} 81. Rf2 {[%emt 0:00:16]} Bb1 {[%emt 0:00:35]} 82. Kc3 {[%emt 0:00:42]} Be4 {[%emt 0:00:34]} 83. Rb2 {[%emt 0:00:38]} Ka4 {[%emt 0:00:42]} 84. Rf2 {[%emt 0:00:41]} Kb5 {[%emt 0:00:06]} 85. Kb2 {[%emt 0:00:24]} Kb4 {[%emt 0:00:12]} 86. Rf4 {[%emt 0:00:14]} a4 {[%emt 0:00:09]} 87. Ka1 {[%emt 0:00:05]} Kc3 {[%emt 0:00:27]} 88. Rf2 {[%emt 0:00:30]} Kd3 {[%emt 0:00:08]} 89. Rxf5 {[%emt 0:00:12]} Bxf5 {[%emt 0:00:09]} 90. Ka2 {[%emt 0:00:04]} Kc2 {[%emt 0:00:37]} 91. Ka1 {[%emt 0:00:07]} 1/2-1/2

[Event "FIDE WYCC Girls U14 2023"]
[Site "Montesilvano"]
[Date "2023.11.23"]
[Round "10.16"]
[White "Toth, Lili"]
[Black "Viti, Greta"]
[Result "1-0"]
[ECO "D11"]
[WhiteElo "2199"]
[BlackElo "1644"]
[Annotator "RC"]
[PlyCount "99"]
[EventDate "2023.11.13"]
[EventType "swiss"]
[EventCountry "ITA"]
[SourceTitle "playchess.com"]
[Source "ChessBase"]
[SourceQuality "1"]
[TimeControl "40/5400+30:1800+30"]

1. d4 {[%emt 0:00:04]} d5 {[%emt 0:00:17]} 2. c4 {[%emt 0:00:06]} c6 {[%emt 0:00:03]} 3. Nf3 {[%emt 0:00:06]} Nf6 {[%emt 0:00:05]} 4. e3 {[%emt 0:00:05]} Bg4 {[%emt 0:00:04]} 5. Nc3 {[%emt 0:03:43]} e6 {[%emt 0:00:22]} 6. h3 {[%emt 0:05:30]} Bxf3 {[%emt 0:00:06]} 7. Qxf3 {[%emt 0:00:11]} Nbd7 {[%emt 0:00:17]} 8. Bd2 {[%emt 0:05:24]} Bd6 {[%emt 0:10:17]} 9. cxd5 {[%emt 0:06:58]} cxd5 {[%emt 0:03:17]} 10. Bd3 {[%emt 0:02:40]} Rc8 {[%emt 0:04:40]} 11. O-O {[%emt 0:00:34]} O-O {[%emt 0:01:14]} 12. Rfc1 {[%emt 0:01:43]} Qe7 {[%emt 0:11:24]} 13. e4 {[%emt 0:13:03]} dxe4 {[%emt 0:02:13]} 14. Nxe4 {[%emt 0:00:23]} Nxe4 {[%emt 0:02:25]} 15. Bxe4 {[%emt 0:00:03]} b6 {[%emt 0:02:44]} 16. d5 {[%emt 0:01:49]} exd5 {[%emt 0:15:10]} 17. Bxd5 {[%emt 0:11:10]} Nf6 {[%emt 0:07:24]} 18. Re1 {[%emt 0:03:44]} Qd7 {[%emt 0:00:20]} 19. Bb3 {[%emt 0:01:26]} Bh2+ {[%emt 0:01:53]} 20. Kxh2 {[%emt 0:00:07]} Qxd2 {[%emt 0:00:08]} 21. Re2 {[%emt 0:00:17]} Qg5 {[%emt 0:01:46]} 22. Rae1 {[%emt 0:02:23]} Qc5 {[%emt 0:12:04]} 23. g3 {[%emt 0:03:44]} h6 {[%emt 0:02:44]} 24. Kg2 {[%emt 0:06:58]} Qd6 {[%emt 0:04:20]} 25. Re3 {[%emt 0:08:09]} Qd8 {[%emt 0:04:55]} 26. Re5 {[%emt 0:04:10]} Rc7 {[%emt 0:00:29]} 27. h4 {[%emt 0:13:40]} Rd7 {[%emt 0:03:23]} 28. R1e2 {[%emt 0:01:56]} Rd3 {[%emt 0:00:53]} 29. R5e3 {[%emt 0:01:36]} Rxe3 {[%emt 0:00:20]} 30. Rxe3 {[%emt 0:00:26]} Qd7 {[%emt 0:02:22]} 31. Rd3 {[%emt 0:00:44]} Qc7 {[%emt 0:00:28]} 32. Rc3 {[%emt 0:00:22]} Qd7 {[%emt 0:00:04]} 33. Qc6 {[%emt 0:00:50]} Qd4 {[%emt 0:01:42]} 34. Qb7 {[%emt 0:01:50]} Nd7 {[%emt 0:04:54]} 35. Rc8 {[%emt 0:01:00]} Rxc8 {[%emt 0:00:58]} 36. Qxc8+ {[%emt 0:00:02]} Nf8 {[%emt 0:00:11]} 37. Qe8 {[%emt 0:01:22]} Qd7 {[%emt 0:00:41]} 38. Qe4 {[%emt 0:00:23]} Qc7 {[%emt 0:00:38]} 39. a3 {[%emt 0:00:36]} Qd7 {[%emt 0:00:46]} 40. Bd5 {[%emt 0:00:00]} Ng6 {[%emt 0:00:00]} 41. b4 {[%emt 0:03:34]} Ne7 {[%emt 0:03:06]} 42. Bb3 {[%emt 0:01:47]} Qc7 {[%emt 0:07:08]} 43. a4 {[%emt 0:07:44]} Nc6 {[%emt 0:04:15]} 44. Qe8+ {[%emt 0:02:24]} Kh7 {[%emt 0:00:07]} 45. Bxf7 {[%emt 0:00:18]} Ne7 {[%emt 0:00:47]} 46. b5 {[%emt 0:05:57]} Qe5 {[%emt 0:02:08]} 47. Bg8+ {[%emt 0:01:05]} Kh8 {[%emt 0:00:30]} 48. Be6+ {[%emt 0:00:08]} Kh7 {[%emt 0:00:34]} 49. Qxe7 {[%emt 0:00:12]} Qe4+ {[%emt 0:00:06]} 50. Kh2 {[%emt 0:00:12]} 1-0

[Event "FIDE WYCC Girls U14 2023"]
[Site "Montesilvano"]
[Date "2023.11.23"]
[Round "10.17"]
[White "Mkrtchyan, Anahit H."]
[Black "Zagorac, Lara"]
[Result "1/2-1/2"]
[ECO "B23"]
[WhiteElo "1630"]
[BlackElo "1866"]
[Annotator "NA RC"]
[PlyCount "99"]
[EventDate "2023.11.13"]
[EventType "swiss"]
[EventCountry "ITA"]
[SourceTitle "playchess.com"]
[Source "ChessBase"]
[SourceQuality "1"]
[TimeControl "40/5400+30:1800+30"]

1. e4 {[%emt 0:00:04]} c5 {[%emt 0:01:54]} 2. Nc3 {[%emt 0:00:07]} a6 {[%emt 0:00:29]} 3. g3 {[%emt 0:00:31]} b5 {[%emt 0:01:40]} 4. Bg2 {[%emt 0:00:22]} Bb7 {[%emt 0:00:40]} 5. Nge2 {[%emt 0:00:38]} g6 {[%emt 0:02:39]} 6. d4 {[%emt 0:00:35]} cxd4 {[%emt 0:09:19]} 7. Nxd4 {[%emt 0:00:24]} Bg7 {[%emt 0:01:21]} 8. O-O {[%emt 0:01:01]} Nc6 {[%emt 0:04:51]} 9. Be3 {[%emt 0:02:24]} h5 {[%emt 0:05:15]} 10. Nxc6 {[%emt 0:03:22]} Bxc6 {[%emt 0:03:53]} 11. Nd5 {[%emt 0:00:44]} Bxd5 {[%emt 0:04:18]} 12. exd5 {[%emt 0:00:15]} d6 {[%emt 0:03:35]} 13. Bd4 {[%emt 0:02:13]} Nf6 {[%emt 0:02:14]} 14. a4 {[%emt 0:02:07]} O-O {[%emt 0:06:29]} 15. Re1 {[%emt 0:03:27]} Qd7 {[%emt 0:06:10]} 16. Qe2 {[%emt 0:02:10]} Rac8 {[%emt 0:10:09]} 17. axb5 {[%emt 0:05:03]} Qxb5 {[%emt 0:03:06]} 18. Qxb5 {[%emt 0:00:38]} axb5 {[%emt 0:00:35]} 19. c3 {[%emt 0:00:17]} Rfe8 {[%emt 0:02:16]} 20. Bf1 {[%emt 0:08:05]} Nxd5 {[%emt 0:05:35]} 21. Bxb5 {[%emt 0:01:14]} Red8 {[%emt 0:01:16]} 22. Bxg7 {[%emt 0:05:57]} Kxg7 {[%emt 0:00:44]} 23. Ra7 {[%emt 0:00:51]} e6 {[%emt 0:08:04]} 24. c4 {[%emt 0:04:53]} Nc7 {[%emt 0:01:54]} 25. Ba4 {[%emt 0:00:41]} Kf6 {[%emt 0:00:58]} 26. b4 {[%emt 0:03:19]} Ra8 {[%emt 0:05:35]} 27. Rxa8 {[%emt 0:00:44]} Nxa8 {[%emt 0:01:04]} 28. f4 {[%emt 0:03:34]} Nb6 {[%emt 0:01:22]} 29. Bb5 {[%emt 0:00:09]} Rc8 {[%emt 0:00:18]} 30. Rc1 {[%emt 0:00:16]} Kf5 {[%emt 0:02:01]} 31. Kf2 {[%emt 0:01:38]} Ke4 {[%emt 0:01:19]} 32. c5 {[%emt 0:01:12]} dxc5 {[%emt 0:02:08]} 33. Rxc5 {[%emt 0:00:27]} Rd8 {[%emt 0:02:26]} 34. Ke2 {[%emt 0:03:37]} Kd4 {[%emt 0:01:17]} 35. Rc6 {[%emt 0:01:04]} Rb8 {[%emt 0:00:27]} 36. Bd3 {[%emt 0:00:33]} Kd5 {[%emt 0:00:33]} 37. b5 {[%emt 0:00:30]} e5 {[%emt 0:00:16]} 38. Ke3 {[%emt 0:00:46]} exf4+ {[%emt 0:00:36]} 39. gxf4 {[%emt 0:00:30]} Re8+ {[%emt 0:00:28]} 40. Kf3 {[%emt 0:00:00]} Kd4 {[%emt 0:00:00]} 41. Bxg6 {[%emt 0:02:40]} fxg6 {[%emt 0:04:45]} 42. Rxb6 {[%emt 0:00:06]} Re3+ {[%emt 0:00:29]} 43. Kf2 {[%emt 0:00:20]} Rb3 {[%emt 0:00:36]} 44. Rxg6 {[%emt 0:01:31]} Ke4 {[%emt 0:16:57]} 45. Rf6 {[%emt 0:04:58]} h4 {[%emt 0:01:31]} 46. Kg2 {[%emt 0:05:32]} h3+ {[%emt 0:02:26]} 47. Kf2 {[%emt 0:00:08]} Rf3+ {[%emt 0:01:09]} 48. Ke2 {[%emt 0:00:29]} Rb3 {[%emt 0:00:19]} 49. Kf2 {[%emt 0:01:04]} Rf3+ {[%emt 0:00:14]} 50. Ke2 {[%emt 0:00:08]} 1/2-1/2

[Event "FIDE WYCC Girls U14 2023"]
[Site "Montesilvano"]
[Date "2023.11.23"]
[Round "10.18"]
[White "Wojs, Alicja"]
[Black "Sneha Halder"]
[Result "1/2-1/2"]
[ECO "B19"]
[WhiteElo "1630"]
[BlackElo "1807"]
[Annotator "NA RC"]
[PlyCount "93"]
[EventDate "2023.11.13"]
[EventType "swiss"]
[EventCountry "ITA"]
[SourceTitle "playchess.com"]
[Source "ChessBase"]
[SourceQuality "1"]
[TimeControl "40/5400+30:1800+30"]

1. e4 {[%emt 0:00:01]} c6 {[%emt 0:08:16]} 2. d4 {[%emt 0:00:05]} d5 {[%emt 0:00:02]} 3. Nd2 {[%emt 0:00:06]} dxe4 {[%emt 0:00:18]} 4. Nxe4 {[%emt 0:00:06]} Bf5 {[%emt 0:00:02]} 5. Ng3 {[%emt 0:00:09]} Bg6 {[%emt 0:00:14]} 6. h4 {[%emt 0:00:19]} h6 {[%emt 0:00:05]} 7. Nf3 {[%emt 0:00:04]} Nd7 {[%emt 0:00:04]} 8. h5 {[%emt 0:00:06]} Bh7 {[%emt 0:00:01]} 9. Bd3 {[%emt 0:00:07]} Bxd3 {[%emt 0:00:06]} 10. Qxd3 {[%emt 0:00:04]} Ngf6 {[%emt 0:00:09]} 11. Bd2 {[%emt 0:00:07]} e6 {[%emt 0:00:06]} 12. O-O-O {[%emt 0:00:06]} Be7 {[%emt 0:00:02]} 13. Kb1 {[%emt 0:00:08]} Qc7 {[%emt 0:00:03]} 14. Ne4 Nxe4 {[%emt 0:00:20]} 15. Qxe4 {[%emt 0:01:12]} Nf6 {[%emt 0:00:04]} 16. Qe2 {[%emt 0:00:09]} O-O-O {[%emt 0:00:59]} 17. c4 {[%emt 0:07:06]} c5 {[%emt 0:00:51]} 18. Bc3 {[%emt 0:01:36]} Qf4 {[%emt 0:02:10]} 19. Qe5 {[%emt 0:15:55]} Qe4+ {[%emt 0:05:19]} 20. Ka1 {[%emt 0:01:34]} Qxe5 {[%emt 0:02:28]} 21. Nxe5 {[%emt 0:00:14]} Rhf8 {[%emt 0:00:47]} 22. f3 {[%emt 0:01:02]} cxd4 {[%emt 0:17:26]} 23. Rxd4 {[%emt 0:13:51]} Nxh5 {[%emt 0:04:00]} 24. Rxd8+ {[%emt 0:01:09]} Rxd8 {[%emt 0:00:00]} 25. Nxf7 {[%emt 0:00:21]} Rf8 {[%emt 0:03:00]} 26. Rxh5 {[%emt 0:03:37]} Rxf7 {[%emt 0:00:04]} 27. Kb1 {[%emt 0:00:14]} Bf6 {[%emt 0:00:25]} 28. Kc2 {[%emt 0:01:00]} Bxc3 {[%emt 0:00:39]} 29. Kxc3 {[%emt 0:00:06]} Kd7 {[%emt 0:00:33]} 30. b4 {[%emt 0:02:06]} Kd6 {[%emt 0:03:28]} 31. c5+ {[%emt 0:02:37]} Kc6 {[%emt 0:00:01]} 32. Re5 {[%emt 0:01:00]} Rf6 {[%emt 0:00:02]} 33. a4 {[%emt 0:00:44]} a6 {[%emt 0:00:11]} 34. Kc4 {[%emt 0:02:10]} g5 {[%emt 0:06:14]} 35. b5+ {[%emt 0:02:30]} axb5+ {[%emt 0:00:06]} 36. axb5+ {[%emt 0:00:06]} Kd7 {[%emt 0:00:13]} 37. Kd4 {[%emt 0:09:41]} Rg6 {[%emt 0:03:32]} 38. Re4 {[%emt 0:02:55]} Rf6 {[%emt 0:00:40]} 39. Re5 {[%emt 0:00:38]} Rf8 {[%emt 0:01:35]} 40. Re2 {[%emt 0:00:00]} h5 {[%emt 0:00:00]} 41. Re5 {[%emt 0:05:59]} Rg8 {[%emt 0:03:56]} 42. c6+ {[%emt 0:07:36]} bxc6 {[%emt 0:00:52]} 43. bxc6+ {[%emt 0:00:02]} Kd6 {[%emt 0:00:44]} 44. c7 {[%emt 0:00:24]} Kxc7 {[%emt 0:01:53]} 45. Rxe6 {[%emt 0:00:26]} h4 {[%emt 0:01:13]} 46. Ke4 {[%emt 0:01:35]} g4 {[%emt 0:01:26]} 47. fxg4 {[%emt 0:00:19]} 1/2-1/2